bitfinex-derivatives/quotes_SOLF0:USTF0_20250528
["timestamp","ask_amount","ask_price","bid_price","bid_amount"]
[1748449429926,30.32,170.77,170.71,0.04120159]
[1748449430128,5.8543,170.76,170.73,5.8549]
[1748449430827,30.32,170.77,170.71,0.04120159]
[1748449432837,5.8547,170.75,170.71,0.04120159]
[1748449433026,30.32,170.77,170.71,0.04120159]
[1748449433427,5.8544,170.75,170.71,0.04120159]
[1748449433626,30.32,170.77,170.71,0.04120159]
[1748449434124,11.86545288,170.78,170.71,0.04120159]
[1748449434125,6.01175288,170.78,170.71,0.04120159]
[1748449434519,5.854,170.77,170.73,5.8551]
[1748449434729,6.01175288,170.78,170.71,0.04120159]
[1748449435831,6.01175288,170.78,170.72,5.8552]
[1748449435832,5.8545,170.75,170.72,5.8552]
[1748449436231,5.8542,170.76,170.73,5.8551]
[1748449436929,5.8545,170.75,170.72,5.8554]
[1748449437331,6.01175288,170.78,170.71,0.04120159]
[1748449437926,5.8543,170.76,170.73,5.8548]
[1748449438130,6.01175288,170.78,170.71,0.04120159]
[1748449439138,5.8555,170.72,170.71,0.04120159]
[1748449440443,30.3,170.75,170.65,30.3]
[1748449440943,5.8561,170.71,170.68,5.8566]
[1748449441444,5.89551152,170.71,170.68,5.89562882]
[1748449441744,5.89551152,170.71,170.68,0.03902882]
[1748449441944,0.03941152,170.71,170.68,0.03902882]
[1748449442939,0.03941152,170.71,170.69,5.8563]
[1748449443652,0.03941152,170.71,170.7,5.8561]
[1748449444345,36.31175288,170.78,170.74,5.8547]
[1748449444543,36.31175288,170.78,170.69,30.3]
[1748449444742,5.8539,170.77,170.74,5.8546]
[1748449445441,5.8539,170.77,170.74,5.89384258]
[1748449448954,5.8542,170.76,170.74,5.89384258]
[1748449449955,7.91625288,170.78,170.69,30.3]
[1748449450254,7.91625288,170.78,170.7,5.8559]
[1748449450444,5.8552,170.73,170.69,30.3]
[1748449450841,5.8552,170.73,170.7,5.8559]
[1748449451045,5.8933764,170.73,170.7,5.89848129]
[1748449451646,5.8933764,170.73,170.71,5.8557]
[1748449452748,0.0381764,170.73,170.7,0.04258129]
[1748449453252,5.8555,170.72,170.7,0.04258129]
[1748449453451,0.0381764,170.73,170.7,0.04258129]
[1748449454053,5.8558,170.71,170.7,0.04258129]
[1748449455949,0.0381764,170.73,170.63,30.26]
[1748449456157,3.9339,170.72,170.63,30.26]
[1748449456456,30.26,170.71,170.64,5.858]
[1748449456657,5.8574,170.67,170.64,5.858]
[1748449457057,5.89783333,170.67,170.64,0.04246329]
[1748449457551,5.89783333,170.67,170.64,5.90046329]
[1748449457857,0.04043333,170.67,170.64,0.04246329]
[1748449458754,0.04043333,170.67,170.65,5.8579]
[1748449458947,0.04043333,170.67,170.64,0.04246329]
[1748449461061,0.04043333,170.67,170.66,5.8575]
[1748449462960,0.04043333,170.67,170.65,5.8577]
[1748449463258,0.04043333,170.67,170.64,0.04246329]
[1748449463455,0.04043333,170.67,170.66,5.8575]
[1748449465758,0.04043333,170.67,170.64,0.04246329]
[1748449466152,5.8576,170.66,170.64,0.04246329]
[1748449466357,0.04043333,170.67,170.64,0.04246329]
[1748449466955,5.8575,170.66,170.64,0.04246329]
[1748449468058,5.8579,170.65,170.58,30.26]
[1748449468259,2.0724,170.64,170.55,30.26]
[1748449468466,4.1379,170.64,170.53,30.28]
[1748449468661,5.8595,170.61,170.53,30.28]
[1748449469059,4.1379,170.64,170.59,5.8598]
[1748449469060,5.859,170.62,170.59,5.8598]
[1748449469364,0.04223235,170.62,170.59,0.04129772]
[1748449469569,5.8593,170.61,170.59,0.04129772]
[1748449469763,0.04223235,170.62,170.59,0.04129772]
[1748449470063,30.32223235,170.62,170.59,0.04129772]
[1748449470368,5.8595,170.61,170.59,0.04129772]
[1748449470565,30.32223235,170.62,170.59,0.04129772]
[1748449474866,5.8594,170.61,170.59,0.04129772]
[1748449475662,36.18123235,170.62,170.59,0.04129772]
[1748449476069,30.32223235,170.62,170.59,5.90099772]
[1748449476270,5.8593,170.61,170.59,0.04129772]
[1748449479269,30.32223235,170.62,170.59,0.04129772]
[1748449480969,36.18123235,170.62,170.6,5.8594]
[1748449481772,30.32223235,170.62,170.6,5.8594]
[1748449483079,36.18123235,170.62,170.6,5.8594]
[1748449483875,36.18123235,170.62,170.59,5.90119772]
[1748449484475,36.18123235,170.62,170.6,5.8596]
[1748449486781,30.32223235,170.62,170.6,5.8596]
[1748449487994,36.18113235,170.62,170.6,5.8596]
[1748449489500,30.32223235,170.62,170.59,0.04129772]
[1748449490794,0.04223235,170.62,170.61,5.8592]
[1748449492300,0.04223235,170.62,170.59,0.04129772]
[1748449492301,30.24,170.68,170.65,5.8575]
[1748449492501,30.24,170.68,170.58,1.9847]
[1748449492696,30.24,170.68,170.59,9.99147969]
[1748449492996,1.991,170.69,170.59,9.99147969]
[1748449493402,1.991,170.69,170.65,5.8579]
[1748449493403,0.04239786,170.66,170.65,5.8579]
[1748449500606,0.04239786,170.66,170.62,0.04507674]
[1748449501194,5.8581,170.65,170.62,5.90377674]
[1748449501500,0.04239786,170.66,170.62,0.04507674]
[1748449502202,5.8579,170.65,170.62,5.90397674]
[1748449502403,0.04239786,170.66,170.62,5.90397674]
[1748449502800,0.04239786,170.66,170.62,0.04507674]
[1748449503408,0.04239786,170.66,170.65,5.8579]
[1748449519813,0.04239786,170.66,170.62,0.04507674]
[1748449520410,0.04239786,170.66,170.64,5.8579]
[1748449520809,0.04239786,170.66,170.62,0.04507674]
[1748449521012,5.89999786,170.66,170.64,5.8582]
[1748449521216,5.89999786,170.66,170.62,0.04507674]
[1748449521914,5.89999786,170.66,170.63,5.8583]
[1748449523024,30.24239786,170.66,170.62,0.04507674]
[1748449523312,30.24239786,170.66,170.61,5.8591]
[1748449523313,2.0104,170.65,170.61,5.8591]
[1748449523510,4.098,170.65,170.61,5.8591]
[1748449523712,5.8584,170.64,170.61,5.8591]
[1748449523909,4.098,170.65,170.61,5.8591]
[1748449524409,4.098,170.65,170.61,0.04205049]
[1748449524613,2.0093,170.64,170.61,0.04205049]
[1748449524816,5.8589,170.62,170.61,0.04205049]
[1748449526318,2.0093,170.64,170.61,0.04205049]
[1748449526515,2.0104,170.65,170.61,0.04205049]
[1748449526912,2.0104,170.65,170.64,5.8582]
[1748449527112,0.04239786,170.66,170.64,5.8582]
[1748449529321,0.04239786,170.66,170.65,5.8579]
[1748449564445,30.16,170.75,170.63,30.16]
[1748449564645,5.855,170.74,170.63,32.0552]
[1748449564838,30.16,170.75,170.64,9.99147969]
[1748449565040,36.0425,170.77,170.64,9.99147969]
[1748449565349,0.04316627,170.72,170.69,0.04123364]
[1748449565546,0.04316627,170.72,170.71,5.8558]
[1748449574156,0.04316627,170.72,170.7,5.856]
[1748449574361,0.04316627,170.72,170.69,30.20123364]
[1748449574362,0.04316627,170.72,170.69,0.04123364]
[1748449574862,5.856,170.71,170.69,0.04123364]
[1748449575547,0.04316627,170.72,170.69,0.04123364]
[1748449576951,0.04316627,170.72,170.7,5.856]
[1748449579059,0.04316627,170.72,170.71,5.8558]
[1748449579766,5.89866627,170.72,170.69,5.89743364]
[1748449579963,0.04316627,170.72,170.69,0.04123364]
[1748449580353,0.04316627,170.72,170.71,5.8558]
[1748449583365,6.627e-05,170.72,170.71,5.8558]
[1748449583566,6.01175288,170.78,170.76,5.8541]
[1748449584661,6.01175288,170.78,170.77,5.8537]
[1748449586168,6.01175288,170.78,170.76,5.854]
[1748449587070,6.01175288,170.78,170.75,0.03788016]
[1748449587663,6.01175288,170.78,170.75,5.89208016]
[1748449587863,6.01175288,170.78,170.75,0.03788016]
[1748449588973,5.8538,170.77,170.75,0.03788016]
[1748449589472,11.86535288,170.78,170.75,5.89228016]
[1748449589673,11.86535288,170.78,170.75,0.03788016]
[1748449590069,6.01175288,170.78,170.75,0.03788016]
[1748449590967,6.01175288,170.78,170.75,5.89228016]
[1748449591573,6.01175288,170.78,170.76,5.8541]
[1748449594163,6.01175288,170.78,170.75,0.03788016]
[1748449594773,5.8538,170.77,170.75,0.03788016]
[1748449595076,7.7587,170.77,170.75,0.03788016]
[1748449595370,1.9049,170.77,170.75,0.03788016]
[1748449599173,1.9049,170.77,170.75,5.89228016]
[1748449600176,7.7589,170.77,170.75,0.03788016]
[1748449600679,1.9049,170.77,170.75,0.03788016]
[1748449601582,1.9049,170.77,170.75,5.89208016]
[1748449602481,1.9049,170.77,170.75,0.03788016]
[1748449602682,7.7587,170.77,170.75,0.03788016]
[1748449602984,1.9049,170.77,170.75,0.03788016]
[1748449603789,1.9049,170.77,170.75,5.89228016]
[1748449605794,7.7588,170.77,170.75,0.03788016]
[1748449607596,5.8541,170.76,170.75,0.03788016]
[1748449607797,1.9049,170.77,170.75,0.03788016]
[1748449608199,7.7588,170.77,170.75,0.03788016]
[1748449609796,7.7588,170.77,170.75,5.89228016]
[1748449610198,7.7588,170.77,170.75,0.03788016]
[1748449611601,5.8541,170.76,170.75,0.03788016]
[1748449613906,7.7587,170.77,170.75,5.89228016]
[1748449614802,7.7587,170.77,170.75,0.03788016]
[1748449615302,5.8541,170.76,170.75,0.03788016]
[1748449615504,1.9049,170.77,170.75,5.89228016]
[1748449615799,1.9049,170.77,170.75,0.03788016]
[1748449616191,1.9049,170.77,170.76,5.8541]
[1748449616390,6.01175288,170.78,170.75,0.03788016]
[1748449616802,6.01175288,170.78,170.77,5.8537]
[1748449629313,6.01175288,170.78,170.77,12.22781422]
[1748449630308,6.01175288,170.78,170.77,5.8537]
[1748449630515,6.01175288,170.78,170.77,12.22781422]
[1748449633516,6.01175288,170.78,170.77,5.8537]
[1748449633821,6.01175288,170.78,170.77,12.22781422]
[1748449640122,6.01175288,170.78,170.77,5.8537]
[1748449640417,6.01175288,170.78,170.76,5.854]
[1748449640611,6.01175288,170.78,170.75,30.13788016]
[1748449640811,6.01175288,170.78,170.75,0.03788016]
[1748449641222,11.86535288,170.78,170.75,5.89208016]
[1748449641823,6.01175288,170.78,170.75,0.03788016]
[1748449642325,5.8538,170.77,170.75,0.03788016]
[1748449643019,6.37411422,170.77,170.54,27.76768437]
[1748449643228,4.011,170.76,170.68,6.37411422]
[1748449643516,5.8545,170.75,170.72,5.8554]
[1748449643725,4.011,170.76,170.72,6.37411422]
[1748449643924,4.05588332,170.76,170.72,0.04191372]
[1748449644224,4.05588332,170.76,170.75,5.8544]
[1748449645224,1.97998332,170.76,170.75,5.8544]
[1748449645517,0.04488332,170.76,170.75,5.8544]
[1748449645917,0.04488332,170.76,170.72,0.04191372]
[1748449646225,5.89918332,170.76,170.72,0.04191372]
[1748449646418,5.89918332,170.76,170.73,5.8549]
[1748449646923,0.04488332,170.76,170.72,0.04191372]
[1748449647426,5.8548,170.74,170.72,0.04191372]
[1748449648128,5.8546,170.75,170.72,0.04191372]
[1748449648521,1.95868332,170.76,170.72,0.04191372]
[1748449649529,5.855,170.74,170.72,5.89731372]
[1748449649717,5.855,170.74,170.72,0.04191372]
[1748449650629,5.8551,170.73,170.72,0.04191372]
[1748449651132,5.8549,170.74,170.72,0.04191372]
[1748449651428,1.95868332,170.76,170.72,0.04191372]
[1748449651623,1.95868332,170.76,170.72,5.89731372]
[1748449651826,1.95868332,170.76,170.72,0.04191372]
[1748449652130,5.855,170.74,170.72,0.04191372]
[1748449653129,5.855,170.74,170.72,5.89731372]
[1748449653924,5.8551,170.73,170.72,0.04191372]
[1748449654833,5.8549,170.74,170.72,0.04191372]
[1748449655030,1.95868332,170.76,170.72,0.04191372]
[1748449656029,1.95868332,170.76,170.72,5.89731372]
[1748449656932,5.855,170.74,170.72,5.89731372]
[1748449657426,5.855,170.74,170.72,0.04191372]
[1748449657732,1.95868332,170.76,170.72,0.04191372]
[1748449658633,5.855,170.74,170.72,0.04191372]
[1748449658932,1.95868332,170.76,170.72,0.04191372]
[1748449661225,5.855,170.74,170.72,0.04191372]
[1748449662134,5.8551,170.73,170.72,0.04191372]
[1748449662629,5.8556,170.72,170.69,5.8563]
[1748449663027,5.8556,170.72,170.65,30.1]
[1748449663730,0.04456092,170.7,170.67,0.04136807]
[1748449664334,0.04456092,170.7,170.69,5.8562]
[1748449668432,0.04456092,170.7,170.67,0.04136807]
[1748449669033,0.04456092,170.7,170.68,5.8568]
[1748449669532,5.90076092,170.7,170.68,5.8568]
[1748449669738,0.04456092,170.7,170.68,5.8568]
[1748449669937,0.04456092,170.7,170.69,5.8565]
[1748449677841,1.9138,170.76,170.74,5.8545]
[1748449678142,1.9138,170.76,170.67,30.14136807]
[1748449678143,1.9138,170.76,170.67,40.06507234]
[1748449678442,7.768,170.76,170.73,5.8549]
[1748449678845,1.95605964,170.76,170.73,5.89840629]
[1748449679833,1.95605964,170.76,170.74,5.8547]
[1748449680037,1.95605964,170.76,170.73,0.04350629]
[1748449681335,1.95605964,170.76,170.74,5.8546]
[1748449682642,7.81015964,170.76,170.73,5.89840629]
[1748449682843,1.95605964,170.76,170.73,0.04350629]
[1748449683145,1.95605964,170.76,170.67,30.1]
[1748449683146,30.1,170.75,170.67,30.1]
[1748449683346,30.1,170.75,170.64,30.1]
[1748449683940,0.04339492,170.71,170.68,0.04209047]
[1748449684341,5.8561,170.7,170.68,0.04209047]
[1748449686643,0.04339492,170.71,170.68,0.04209047]
[1748449687045,5.8563,170.7,170.68,0.04209047]
[1748449688143,5.8565,170.69,170.68,0.04209047]
[1748449689849,5.8563,170.7,170.68,0.04209047]
[1748449690444,5.8565,170.69,170.68,0.04209047]
[1748449690645,0.04339492,170.71,170.68,0.04209047]
[1748449690841,5.8564,170.7,170.68,0.04209047]
[1748449692950,5.8565,170.69,170.68,0.04209047]
[1748449693748,5.8563,170.7,170.68,0.04209047]
[1748449697058,5.8565,170.69,170.68,0.04209047]
[1748449698565,5.8563,170.7,170.68,5.89889047]
[1748449698759,5.8563,170.7,170.68,0.04209047]
[1748449699959,5.89949492,170.71,170.68,5.89889047]
[1748449700358,0.04339492,170.71,170.68,5.89889047]
[1748449700765,5.89929492,170.71,170.69,5.8563]
[1748449700959,0.04339492,170.71,170.69,5.8563]
[1748449701161,0.04339492,170.71,170.68,0.04209047]
[1748449701462,0.04339492,170.71,170.69,5.8565]
[1748449702261,5.89919492,170.71,170.69,5.8565]
[1748449705960,0.04339492,170.71,170.69,5.8565]
[1748449707061,5.89939492,170.71,170.69,5.8565]
[1748449709265,5.89939492,170.71,170.68,5.89879047]
[1748449709659,5.89939492,170.71,170.69,5.8564]
[1748449711567,5.8561,170.7,170.68,5.89889047]
[1748449713477,5.89939492,170.71,170.68,5.89889047]
[1748449713678,0.04339492,170.71,170.69,5.8563]
[1748449715879,5.89919492,170.71,170.69,5.8563]
[1748449716878,0.04339492,170.71,170.7,5.8561]
[1748449718277,5.89919492,170.71,170.69,5.8564]
[1748449719372,0.04339492,170.71,170.68,0.04209047]
[1748449720576,5.89929492,170.71,170.69,5.8563]
[1748449724674,0.04339492,170.71,170.7,5.8561]
[1748449724879,0.04339492,170.71,170.68,0.04209047]
[1748449725583,5.89939492,170.71,170.69,5.8564]
[1748449727884,5.89939492,170.71,170.68,5.89879047]
[1748449728777,0.04339492,170.71,170.68,0.04209047]
[1748449729185,6.42507245,170.71,170.68,0.04209047]
[1748449729889,5.8564,170.7,170.68,0.04209047]
[1748449730187,6.42507245,170.71,170.68,0.04209047]
[1748449730584,5.8561,170.7,170.68,0.04209047]
[1748449731789,5.8565,170.69,170.68,0.04209047]
[1748449733793,5.8561,170.7,170.68,0.04209047]
[1748449735489,5.8565,170.69,170.68,0.04209047]
[1748449740290,5.8563,170.7,170.68,0.04209047]
[1748449741199,5.89929492,170.71,170.68,0.04209047]
[1748449741400,0.04339492,170.71,170.68,0.04209047]
[1748449742693,0.04339492,170.71,170.7,5.8561]
[1748449743299,0.04339492,170.71,170.68,5.89879047]
[1748449743896,5.8564,170.7,170.68,0.04209047]
[1748449744702,5.8565,170.69,170.68,0.04209047]
[1748449747602,5.8577,170.66,170.63,5.8584]
[1748449748594,0.03979404,170.66,170.63,5.8584]
[1748449748799,0.03979404,170.66,170.63,5.89942968]
[1748449749005,0.03979404,170.66,170.63,0.04102968]
[1748449749803,5.8579,170.65,170.63,0.04102968]
[1748449750405,5.89739404,170.66,170.63,5.89932968]
[1748449753716,5.8579,170.65,170.63,5.89932968]
[1748449754121,5.8579,170.65,170.63,0.04102968]
[1748449755620,5.89729404,170.66,170.64,5.8582]
[1748449755821,0.03979404,170.66,170.63,0.04102968]
[1748449756518,0.03979404,170.66,170.63,5.89942968]
[1748449757119,0.03979404,170.66,170.63,0.04102968]
[1748449757721,5.8582,170.65,170.63,0.04102968]
[1748449759025,5.8582,170.64,170.63,0.04102968]
[1748449760528,5.858,170.65,170.63,0.04102968]
[1748449761331,5.858,170.65,170.63,5.89952968]
[1748449761631,5.8582,170.64,170.63,0.04102968]
[1748449761925,0.03979404,170.66,170.63,0.04102968]
[1748449762126,5.8579,170.65,170.63,0.04102968]
[1748449763827,0.03979404,170.66,170.63,0.04102968]
[1748449763828,5.89749404,170.66,170.63,0.04102968]
[1748449764027,0.03979404,170.66,170.63,0.04102968]
[1748449765030,0.03979404,170.66,170.65,5.8579]
[1748449768026,0.03979404,170.66,170.63,0.04102968]
[1748449768531,5.8579,170.65,170.63,5.89932968]
[1748449768927,0.03979404,170.66,170.63,0.04102968]
[1748449769128,0.03979404,170.66,170.64,5.8582]
[1748449770333,0.03979404,170.66,170.65,5.8579]
[1748449775634,36.42167753,170.73,170.64,6.38167753]
[1748449775831,36.42167753,170.73,170.66,6.38167753]
[1748449776530,0.03992683,170.71,170.68,0.04059306]
[1748449776925,0.03992683,170.71,170.7,5.8561]
[1748449777530,0.03992683,170.71,170.69,5.8563]
[1748449777730,5.89582683,170.71,170.69,5.8563]
[1748449778334,0.03992683,170.71,170.69,5.8563]
[1748449779330,0.03992683,170.71,170.68,0.04059306]
[1748449779534,0.03992683,170.71,170.68,5.89739306]
[1748449780124,5.89582683,170.71,170.68,5.89739306]
[1748449780324,5.89582683,170.71,170.68,0.04059306]
[1748449780531,5.89582683,170.71,170.69,5.8564]
[1748449780733,5.89582683,170.71,170.68,0.04059306]
[1748449780934,5.89582683,170.71,170.68,5.89729306]
[1748449782637,5.8562,170.7,170.68,5.89729306]
[1748449786041,5.89582683,170.71,170.69,5.8564]
[1748449786838,0.03992683,170.71,170.69,5.8564]
[1748449788146,0.03992683,170.71,170.7,5.8561]
[1748449789841,6.1278,170.77,170.7,6.38167753]
[1748449790040,6.1278,170.77,170.72,6.38167753]
[1748449790343,12.50947753,170.77,170.67,30.0]
[1748449790543,12.50947753,170.77,170.67,36.38167753]
[1748449790544,6.38167753,170.75,170.67,36.38167753]
[1748449790745,5.8557,170.72,170.67,36.38167753]
[1748449790939,5.8557,170.72,170.69,5.8996239]
[1748449791133,0.0387404,170.73,170.69,0.0433239]
[1748449791336,5.8557,170.72,170.69,0.0433239]
[1748449791539,5.8557,170.72,170.69,5.8997239]
[1748449792539,5.8558,170.71,170.69,0.0433239]
[1748449793145,0.0387404,170.73,170.69,0.0433239]
[1748449793546,5.8940404,170.73,170.71,5.8558]
[1748449793943,0.0387404,170.73,170.69,0.0433239]
[1748449794248,0.0387404,170.73,170.72,5.8555]
[1748449796539,0.0387404,170.73,170.71,5.8557]
[1748449797846,0.0387404,170.73,170.69,0.0433239]
[1748449798349,5.8940404,170.73,170.7,5.8561]
[1748449799041,5.8555,170.72,170.7,5.8561]
[1748449799650,5.8555,170.72,170.69,5.8996239]
[1748449799842,5.8558,170.71,170.69,0.0433239]
[1748449800050,0.0387404,170.73,170.69,0.0433239]
[1748449800246,6.38167753,170.72,170.69,0.0433239]
[1748449800552,6.38167753,170.7,170.62,30.0]
[1748449800758,6.38167753,170.68,170.62,30.0]
[1748449801055,6.38167753,170.68,170.6,6.38167753]
[1748449801258,6.38167753,170.68,170.63,5.8585]
[1748449801553,5.8577,170.66,170.64,0.04153392]
[1748449801753,0.04292963,170.67,170.64,0.04153392]
[1748449802252,5.8577,170.66,170.64,0.04153392]
[1748449803853,5.8579,170.65,170.64,0.04153392]
[1748449804350,0.04292963,170.67,170.64,0.04153392]
[1748449804551,5.8576,170.66,170.64,0.04153392]
[1748449804852,0.04292963,170.67,170.64,0.04153392]
[1748449805252,5.8579,170.65,170.64,0.04153392]
[1748449807752,9.97764272,170.66,170.55,30.02]
[1748449807958,9.97764272,170.66,170.52,31.9663]
[1748449808259,2.0169,170.65,170.55,5.8611]
[1748449808446,2.0169,170.65,170.52,30.02]
[1748449808646,2.0169,170.65,170.57,0.04503749]
[1748449808647,0.04267678,170.6,170.57,0.04503749]
[1748449810859,5.8599,170.59,170.57,0.04503749]
[1748449811458,5.8603,170.58,170.57,0.04503749]
[1748449811853,5.8608,170.57,170.52,30.02]
[1748449812156,2.0077,170.59,170.49,30.02]
[1748449812358,2.0077,170.59,170.54,5.8614]
[1748449812558,2.0077,170.59,170.49,30.02]
[1748449812957,2.0077,170.59,170.57,5.8604]
[1748449813151,2.0077,170.59,170.56,0.04108094]
[1748449813351,2.05089424,170.59,170.56,0.0434232]
[1748449813547,2.05089424,170.59,170.58,5.8603]
[1748449818456,0.04319424,170.59,170.58,5.8603]
[1748449820556,0.04319424,170.59,170.56,0.0434232]
[1748449820557,1.8972,170.64,170.63,5.8585]
[1748449820962,30.0,170.66,170.57,30.0]
[1748449821262,30.0,170.66,170.64,5.858]
[1748449821959,30.0,170.66,170.65,5.8579]
[1748449825968,30.0,170.66,170.63,0.04423659]
[1748449826564,30.0,170.66,170.54,29.98]
[1748449826565,39.97764272,170.66,170.54,29.98]
[1748449826765,39.97764272,170.66,170.51,1.9092]
[1748449826965,39.97764272,170.66,170.51,31.8892]
[1748449827164,39.97764272,170.66,170.56,5.8607]
[1748449827363,39.97764272,170.66,170.51,31.8892]
[1748449827558,0.04249965,170.6,170.57,0.04241216]
[1748449828264,5.90229965,170.6,170.57,0.04241216]
[1748449828966,5.86,170.59,170.57,0.04241216]
[1748449830467,5.8603,170.58,170.57,0.04241216]
[1748449830670,0.04249965,170.6,170.57,0.04241216]
[1748449831066,5.8602,170.59,170.57,0.04241216]
[1748449831268,0.04249965,170.6,170.57,0.04241216]
[1748449831667,5.8599,170.59,170.57,0.04241216]
[1748449831872,0.04249965,170.6,170.57,0.04241216]
[1748449832171,5.8603,170.59,170.57,0.04241216]
[1748449832664,0.04249965,170.6,170.57,0.04241216]
[1748449832861,5.8602,170.59,170.57,0.04241216]
[1748449833871,5.8603,170.58,170.57,0.04241216]
[1748449835269,0.04249965,170.6,170.57,0.04241216]
[1748449836569,5.8603,170.58,170.57,0.04241216]
[1748449838273,0.04249965,170.6,170.51,29.98]
[1748449838474,29.98,170.62,170.51,29.98]
[1748449838674,5.8593,170.61,170.51,29.98]
[1748449839066,0.04226553,170.58,170.57,5.8606]
[1748449839274,0.04226553,170.58,170.54,0.04172484]
[1748449839667,0.04226553,170.58,170.55,5.861]
[1748449840471,5.90256553,170.58,170.56,5.8609]
[1748449841178,0.04226553,170.58,170.54,0.04172484]
[1748449841877,0.04226553,170.58,170.57,5.8606]
[1748449842072,29.98,170.62,170.55,30.0]
[1748449842378,5.8588,170.63,170.55,31.9611]
[1748449842675,34.0674,170.65,170.55,31.9611]
[1748449842875,34.0674,170.65,170.61,5.859]
[1748449843072,34.10628351,170.65,170.61,5.9015545]
[1748449843272,5.8589,170.62,170.61,0.0425545]
[1748449848475,5.8597,170.6,170.57,5.8605]
[1748449848975,5.8597,170.6,170.55,30.0]
[1748449849372,0.04148981,170.59,170.56,0.03955331]
[1748449849777,0.04148981,170.59,170.57,5.8603]
[1748449850279,0.04148981,170.59,170.56,0.03955331]
[1748449850479,0.04148981,170.59,170.56,5.90035331]
[1748449850681,0.04148981,170.59,170.56,0.03955331]
[1748449851973,5.90158981,170.59,170.57,5.8606]
[1748449852780,5.8603,170.58,170.56,5.90035331]
[1748449853182,0.04148981,170.59,170.56,5.90035331]
[1748449853478,5.90148981,170.59,170.57,5.8606]
[1748449853675,5.90148981,170.59,170.56,0.03955331]
[1748449853676,0.04148981,170.59,170.56,0.03955331]
[1748449855382,5.8606,170.57,170.56,0.03955331]
[1748449858587,35.8406,170.57,170.56,0.03955331]
[1748449858882,46.8835,170.54,170.3,11.7395]
[1748449859085,10.00772718,170.46,170.33,1.9879]
[1748449859286,31.993,170.45,170.33,1.9879]
[1748449859482,35.9678,170.45,170.33,1.9879]
[1748449859686,0.04503754,170.41,170.37,0.04361129]
[1748449859991,5.8665,170.4,170.37,0.04361129]
[1748449860592,2.49434157,170.39,170.37,0.04361129]
[1748449860888,30.02503754,170.41,170.37,0.04361129]
[1748449861091,2.49408337,170.4,170.37,0.04361129]
[1748449861286,2.49409994,170.39,170.37,0.04361129]
[1748449861491,30.02503754,170.41,170.37,0.04361129]
[1748449862179,30.02503754,170.41,170.37,5.91071129]
[1748449862784,30.02503754,170.41,170.37,0.04361129]
[1748449862982,0.04503754,170.41,170.37,0.04361129]
[1748449863395,0.04503754,170.41,170.4,5.8665]
[1748449875101,0.04503754,170.41,170.39,5.8667]
[1748449875402,0.04503754,170.41,170.37,0.04361129]
[1748449877002,0.04503754,170.41,170.4,5.8665]
[1748449881206,0.04503754,170.41,170.37,0.04361129]
[1748449882999,0.04503754,170.41,170.38,5.8669]
[1748449883203,5.91143754,170.41,170.38,5.8669]
[1748449883504,5.91143754,170.41,170.39,5.8668]
[1748449884304,0.04503754,170.41,170.39,5.8668]
[1748449884511,0.04503754,170.41,170.37,0.04361129]
[1748449884815,5.8668,170.39,170.37,0.04361129]
[1748449885110,0.04503754,170.41,170.37,0.04361129]
[1748449885304,5.8683,170.35,170.26,3.0221]
[1748449885610,30.0,170.38,170.27,30.0]
[1748449885809,34.1408,170.37,170.25,31.56959651]
[1748449886009,5.8693,170.32,170.29,5.87]
[1748449886303,34.1408,170.37,170.25,31.56959651]
[1748449886509,5.90675233,170.32,170.29,5.91494519]
[1748449887010,0.03735233,170.32,170.29,5.91494519]
[1748449887315,0.03735233,170.32,170.29,0.04484519]
[1748449888412,5.90675233,170.32,170.29,5.91504519]
[1748449890010,5.8696,170.31,170.29,0.04484519]
[1748449890916,5.8699,170.3,170.29,0.04484519]
[1748449893415,5.8697,170.31,170.29,0.04484519]
[1748449894118,5.8699,170.3,170.29,0.04484519]
[1748449894420,0.03735233,170.32,170.26,5.8712]
[1748449895413,0.03735233,170.32,170.17,2.0184]
[1748449895414,0.03735233,170.32,170.18,10.00469315]
[1748449895615,40.00469315,170.33,170.2,2.0184]
[1748449895806,5.8698,170.31,170.27,5.8708]
[1748449896008,5.8698,170.31,170.21,30.02]
[1748449896211,5.8701,170.3,170.27,5.8709]
[1748449896408,0.03910182,170.3,170.27,5.91278159]
[1748449896611,0.03910182,170.3,170.27,0.04188159]
[1748449897410,5.8706,170.28,170.27,0.04188159]
[1748449898126,31.9236,170.29,170.18,30.02]